Cogmind - Beta 15 @@@ ROGUE MODE // 2025.07.30 @ 16:58:11 Player: satan5 Result: Destroyed by NQ-YWX(R) with Subdweller Shrapnel Launcher Performance ------------- Evolutions (0) 0 Regions Visited (2) 400 Robots Destroyed (38) 190 Value Destroyed (900) 900 Prototype IDs (13) 260 Alien Tech Used (0) 0 Bonus (0) 0 TOTAL SCORE: 1750 Bonus ------- None Cogmind --------- Core Integrity 0/250 Matter 292/300 Energy 166/200 System Corruption 0% Temperature Cool (0) Movement Rolling (120) Ox1 Location -10/Subcaves Parts ------- > --- POWER (1) -------- Subdweller Power Source > --- PROPULSION (2) --- Subdweller Monowheel > --- UTILITY (2) ------ Medium Storage Unit Hardened Light Armor Plating > --- WEAPON (2) ------- Subdweller Beam Cannon Subdweller Machine Gun > --- INVENTORY (10) --- Ion Engine Gun Armor Riot Gun Riot Gun Subdweller Machine Gun Grenade Launcher Grenade Launcher Subdweller Shrapnel Launcher Peak State ------------ > --- POWER ------------ Subdweller Power Source > --- PROPULSION ------- Subdweller Monowheel > --- UTILITY ---------- Medium Storage Unit Hardened Light Armor Plating > --- WEAPON ----------- Subdweller Beam Cannon Subdweller Machine Gun > --- INVENTORY -------- Ion Engine Gun Armor Riot Gun Riot Gun Subdweller Machine Gun Grenade Launcher Grenade Launcher Subdweller Shrapnel Launcher [Rating: 13] Favorites ----------- Power Ion Engine Engine Ion Engine Propulsion Light Treads Treads Light Treads Wheel Subdweller Monowheel Utility Medium Storage Unit Device Seismic Detector Storage Medium Storage Unit Processor Targeting Computer Protection Hardened Light Armor Plating Weapon Heavy EM Pulse Gun Energy Gun Heavy EM Pulse Gun Energy Cannon Subdweller Beam Cannon Ballistic Gun Light Assault Rifle Build | -11 -10 -10 ------- Run | Yrd Mat Sub Slots Evolved . | . . . Power . | . . . Propulsion . | . . . Utility . | . . . Weapon . | . . . Parts Attached 26 | 8 6 12 Power 4 | 1 . 3 Engine 4 | 1 . 3 Core . | . . . Reactor . | . . . Propulsion 5 | 2 . 3 Treads 3 | 2 . 1 Leg . | . . . Wheel 2 | . . 2 Hover . | . . . Flight . | . . . Utility 5 | 2 2 1 Device 1 | 1 . . Storage 2 | 1 1 . Processor 1 | . 1 . Hackware . | . . . Protection 1 | . . 1 Artifact . | . . . Weapon 12 | 3 4 5 Energy Gun 6 | 3 2 1 Energy Cannon 3 | . . 3 Ballistic Gun 3 | . 2 1 Ballistic Cannon . | . . . Launcher . | . . . Special Weapon . | . . . Impact Weapon . | . . . Slashing Weapon . | . . . Piercing Weapon . | . . . Special Melee Weapon . | . . . Unidentified Prototypes . | . . . Parts Lost 6 | . 2 4 Power 1 | . . 1 Propulsion 3 | . . 3 Utility . | . . . Weapon 2 | . 2 . Highest Loss Streak 2 | . 2 2 To Critical Strikes . | . . . Average Backups 8 | . 6 9 Power . | . . . Propulsion . | . . . Utility 2 | . 2 2 Weapon 5 | . 4 6 Tool/Special . | . . . Unused Backups 16 | . 3 13 Power . | . . . Propulsion 1 | . 1 . Utility 4 | . 1 3 Weapon 11 | . 1 10 Tool/Special . | . . . Average Slot Usage (%) 98 | . 98 97 Engine 13 | . 14 13 Treads 24 | . 27 22 Wheel 1 | . . 3 Storage 14 | . 14 14 Processor 12 | . 11 13 Energy Gun 19 | . 24 15 Energy Cannon 6 | . . 11 Ballistic Gun 1 | . 3 . Peak Build Rating 13 | 7 10 13 Average Rating 9 | 5 8 10 On Entrance 5 | . 7 10 Naked Turns . | . . . Heaviest Build 32 | 15 21 32 Greatest Support 40 | 40 40 40 Greatest Overweight (x) 2 | 2 . 1 Average Overweight (x) . | . . . Largest Inventory Capacity 10 | 8 10 10 Average Capacity 9 | 7 9 10 Most Carried 10 | 2 10 10 Average Carried 8 | . 6 9 Final Capacity 10 | 8 10 10 Final Carried 10 | 2 10 8 Class Distribution -------------------- 99% | Mutant Dominant Class ---------------- Mutant | -10/Materials Mutant | -10/Subcaves Resources | -11 -10 -10 ----------- Run | Yrd Mat Sub Matter Collected 569 | 280 125 164 Remotely . | . . . Salvage Created 1223 | 125 519 579 Parts 88 | 10 40 38 Haulers Intercepted 1 | . 1 . Recyclers Shooed 2 | 1 1 . Parts Field Recycled . | . . . Retrieved Matter . | . . . Parts Self-Destructed 7 | . . 7 Prevented 1 | . . 1 Kills | -11 -10 -10 ------- Run | Yrd Mat Sub Combat Hostiles Destroyed 29 | . 12 17 Guns 14 | . 11 3 Cannons 12 | . . 12 AOE 1 | . . 1 Classes Destroyed 8 | 2 5 1 Tunneler 3 | 2 1 . Hauler 1 | . 1 . Recycler 1 | 1 . . Operator 1 | . 1 . Watcher 3 | . 3 . Swarmer 11 | . 6 5 Grunt 6 | . 6 . Subdweller 12 | . . 12 Best Kill Streak 5 | 3 5 4 Combat Bots Only 5 | . 5 4 Max Kills in Single Turn 2 | 1 2 1 Gunslinging . | . . . Exploded 1 | . . 1 Melee . | . . . Uniques/NPCs Destroyed . | . . . Combat | -11 -10 -10 -------- Run | Yrd Mat Sub Hostile Shots Fired 113 | . 48 65 Missed 28 | . 11 17 Hits 85 | . 37 48 Projectile 85 | . 37 48 AOE 6 | . . 6 Critical Strikes 1 | . . 1 Damage Taken 1390 | . 353 1037 Core 286 | . 43 243 Absorbed by Shields . | . . . Regen/Repaired (Parts) 86 | . 86 . Core Remaining (%) 100 | 100 . . Volleys Fired 126 | 5 52 69 Largest 2 | 2 2 2 Hottest 160 | 80 90 160 Shots Fired 216 | 10 90 116 Gun 145 | 10 90 45 Cannon 71 | . . 71 Launcher . | . . . Special . | . . . Kinetic 11 | . 5 6 Thermal 131 | . 23 108 Explosive . | . . . Electromagnetic 74 | 10 62 2 Robot Hit Streak 35 | 5 22 35 Robot Miss Streak 6 | 1 6 3 Penetration Max . | . . . Secondary Targets 1 | . 1 . Max Gunslinging Chain 1 | . 1 . Shots Hit Robots 132 | 7 59 66 Core Hits 53 | 4 25 24 Critical Kills 1 | . . 1 Critical Parts Destroyed . | . . . Critical Strikes 4 | . 3 1 Burn 3 | . 3 . Meltdown 1 | . . 1 Melee Attacks . | . . . Impact . | . . . Slashing . | . . . Piercing . | . . . Sneak Attacks . | . . . Combat Hostiles . | . . . Follow-up Attacks . | . . . Damage Inflicted 2566 | 111 854 1601 Guns 1548 | 111 816 621 Cannons 958 | . . 958 Explosions 60 | . 38 22 Melee . | . . . Ramming . | . . . Kinetic 90 | . 23 67 Thermal 1783 | . 275 1508 Explosive . | . . . Electromagnetic 693 | 111 556 26 Impact . | . . . Slashing . | . . . Piercing . | . . . Highest Corruption . | . . . Average Corruption . | . . . Corruption Purged . | . . . Corruption Blocked . | . . . Overload Shots . | . . . Overflow Damage . | . . . Projectiles . | . . . Explosions . | . . . Melee . | . . . Knockbacks . | . . . Impact . | . . . Kinetic . | . . . Secondary . | . . . Self-Inflicted Damage . | . . . Shots . | . . . Rammed . | . . . Targets Rammed . | . . . Kicked . | . . . Crushed . | . . . Highest Temperature 266 | 90 266 156 Average Temperature 68 | 46 89 43 Received Heat Transfer 132 | . 96 36 Siege Activations . | . . . Martial Activations . | . . . Shielding Activations . | . . . Robots Disrupted . | . . . Combat Hostiles . | . . . Robots Corrupted . | . . . Combat Hostiles . | . . . Parts Fried 2 | . 2 . Impact Corruptions . | . . . Robots Melted 2 | . 1 1 Combat Hostiles 2 | . 1 1 Parts Melted 4 | . 1 3 Heat Transferred 2970 | . 975 1995 Parts Sabotaged . | . . . Parts Stolen . | . . . Parts Stripped . | . . . Power Chain Reactions 2 | . 1 1 Alert | -11 -10 -10 ------- Run | Yrd Mat Sub Maximum Alert Level . | . . . Low Security (%) 100 | 100 100 . Level 1 . | . . . Level 2 . | . . . Level 3 . | . . . Level 4 . | . . . Level 5 . | . . . High Security . | . . . Max Security . | . . . Peak Influence 130 | 10 130 . Initial . | . . . Average 29 | 1 31 . Influence Increases 552 | 15 397 140 Destroy 0b10 Robot/C 340 | . 240 100 Destroy 0b10 Robot/NC 45 | 15 30 . Destroy Leader 68 | . 58 10 Successful Hack 21 | . 21 . Destroy Structure 3 | . 3 . Lose Combat Pursuer 75 | . 45 30 Influence Decreases 478 | 15 397 66 Time Decay 458 | 15 377 66 Lost Part 20 | . 20 . Squads Dispatched 2 | . 2 . Investigation 1 | . 1 . Extermination . | . . . Reinforcement 1 | . 1 . Assault . | . . . Garrison . | . . . Intercept . | . . . Searches Triggered . | . . . Construction Impeded . | . . . Haulers Reinforced . | . . . Active Scanning Responses . | . . . Cargo Convoy Interrupts . | . . . Stealth | -11 -10 -10 --------- Run | Yrd Mat Sub Distress Signals . | . . . Communications Jammed . | . . . Distress Signals . | . . . Times Spotted 41 | . 21 20 Peak Tracking Total 4 | . 4 4 Tactical Retreats 4 | . 3 1 Traps | -11 -10 -10 ------- Run | Yrd Mat Sub Traps Triggered 3 | . 3 . Indirectly . | . . . Trap Hack Attempts . | . . . Triggered . | . . . Disarmed . | . . . Reprogrammed . | . . . Reused . | . . . Traps Extracted . | . . . Installed . | . . . Triggered . | . . . Machines | -11 -10 -10 ---------- Run | Yrd Mat Sub Machines Disabled 1 | . . 1 Max in Single Turn 1 | . . 1 Machines Repaired . | . . . Machines Dismantled . | . . . Machines Sabotaged . | . . . Overloaded Fab Kills . | . . . Hacking | -11 -10 -10 --------- Run | Yrd Mat Sub Machines Accessed 8 | . 7 1 Terminals 6 | . 6 . Fabricators . | . . . Repair Stations 1 | . 1 . Recycling Units . | . . . Scanalyzers . | . . . Garrison Access . | . . . Total Hacks 29 | . 20 9 Successful 20 | . 11 9 Failed 9 | . 9 . Catastrophic . | . . . Database Lockouts . | . . . Manual 9 | . 9 . Terminals 18 | . 18 . Fabricators . | . . . Repair Stations 2 | . 2 . Recycling Units . | . . . Scanalyzers . | . . . Garrison Access . | . . . Terminal Hacks 13 | . 4 9 Record 8 | . . 8 Robot Analysis 1 | . 1 . Prototype ID Bank 1 | . 1 . Locate Traps 2 | . 2 . Proto ID Catalog 1 | . . 1 Fabricator Hacks . | . . . Repair Station Hacks 2 | . 2 . Scan Component 1 | . 1 . Repair 1 | . 1 . Recycling Unit Hacks . | . . . Scanalyzer . | . . . Garrison Access Hacks . | . . . Unauthorized Hacks 5 | . 5 . Terminals 5 | . 5 . Botnet 4 | . 4 . Operators 1 | . 1 . Fabricators . | . . . Repair Stations . | . . . Recycling Units . | . . . Scanalyzers . | . . . Garrison Access . | . . . Data Cores Recovered . | . . . Used . | . . . Hacking Detections 7 | . 7 . Full Trace Events . | . . . Feedback Events . | . . . Feedback Blocked . | . . . Robot Schematics Acquired . | . . . Robots Built . | . . . Authchips . | . . . Time . | . . . Total Robot Build Rating . | . . . Part Schematics Acquired . | . . . Parts Built . | . . . Authchips . | . . . Time . | . . . Total Part Build Rating . | . . . Parts Repaired 1 | . 1 . Time 26 | . 26 . Parts Recycled . | . . . Recycled Matter . | . . . Retrieved Matter . | . . . Retrieved Components . | . . . Parts Scanalyzed . | . . . Part Schematics Acquired . | . . . Parts Damaged . | . . . Bothacking | -11 -10 -10 ------------ Run | Yrd Mat Sub Used RIF Installer . | . . . Robots Hacked . | . . . Non-combat . | . . . Combat . | . . . Robot Hacks Applied . | . . . Relay Couplers Released . | . . . Fabnet Peak Effective % . | . . . Robots Rewired . | . . . Allies Hacked . | . . . Hacks Repelled . | . . . Allies | -11 -10 -10 -------- Run | Yrd Mat Sub Total Allies . | . . . Largest Group . | . . . Highest-Rated Group . | . . . Highest-Rated Ally . | . . . Total Orders . | . . . Ally Attacks . | . . . Total Damage . | . . . Kills . | . . . Allies Corrupted . | . . . Allies Melted . | . . . Intel | -11 -10 -10 ------- Run | Yrd Mat Sub Active Infowar (turns) 212 | 17 195 . Seismic 212 | 17 195 . Robot Analysis Total 1 | . 1 . Derelict Logs Recovered 2 | . . 2 Drone Launches . | . . . Drone Recoveries . | . . . Exploration | -11 -10 -10 ------------- Run | Yrd Mat Sub Turns Passed 3457 | 89 1377 1991 Spaces Moved 1864 | 41 701 1122 Core 6 | 6 . . Treads 1568 | 35 701 832 Legs . | . . . Wheels 290 | . . 290 Hover . | . . . Flight . | . . . Fastest Speed 50 | 50 160 120 Average Speed 154 | 148 160 150 Slowest Speed 240 | 160 160 240 Overloaded Moves . | . . . Propulsion Burnouts . | . . . Robots Hopped . | . . . Potential Cave-ins . | . . . Cave-ins Triggered . | . . . Exploration Rate (%) 54 | 5 95 64 Regions Visited 2 Branch Regions 1 Pre-discovered Areas . | . . . Known Exits Taken . | . . . Unknown Exits Taken 2 | 1 1 . Scrap Searched 4 | . . 4 Spaces Dug 3 | . . 3 Terrain Destroyed 17 | . 3 14 Melee . | . . . Projectile 10 | . . 10 AOE 7 | . 3 4 Terrain Rammed . | . . . Walls Destroyed . | . . . Machines Disabled . | . . . Actions | -11 -10 -10 --------- Run | Yrd Mat Sub Total 2231 | 56 865 1310 Wait 156 | . 84 72 Move 1862 | 40 700 1122 Hop . | . . . Pick Up 30 | 3 13 14 Fast Attach 15 | 6 6 3 Attach 6 | 1 2 3 Detach 1 | . . 1 Swap 15 | 1 4 10 Drop 20 | . 4 16 Fire 126 | 5 52 69 Melee . | . . . Ram . | . . . Kick . | . . . Crush . | . . . Escape Stasis . | . . . Rewire . | . . . Trap . | . . . Miscellaneous . | . . . Route ------- -11/Scrapyard -10/Materials (discovered 5 exits: [*Mat x3] / [*Min] / *Sub) -10/Subcaves History --------- Turn | Location | Event 15 | -11/Scrapyard | Discovered new exit (range 15) 90 | -11/Scrapyard | Entered Materials 306 | -10/Materials | Build established: Mutant 409 | -10/Materials | Discovered new exit (range 7) 590 | -10/Materials | Derelicts attacked the area 611 | -10/Materials | Discovered new exit (range 8) 887 | -10/Materials | Discovered new exit (range 16) 1101 | -10/Materials | Discovered new exit (range 15) 1247 | -10/Materials | Repaired Lgt. Treads 1453 | -10/Materials | Discovered new exit (range 10) 1467 | -10/Materials | Entered Subcaves 1468 | -10/Subcaves | Approached by a straggling Scientist 1595 | -10/Subcaves | Learned 2 Materials zone layouts 1916 | -10/Subcaves | Shifting Twisted Machinery released Sub. Beam Cannon 1942 | -10/Subcaves | Shifting Twisted Machinery released Sub. Laser 2564 | -10/Subcaves | Visited 4L-MR0's lab 2580 | -10/Subcaves | Found Gun Armor 2939 | -10/Subcaves | Ambushed by Subdweller buried in earth 2958 | -10/Subcaves | Core integrity fell below 50% 3153 | -10/Subcaves | Learned Materials interactive machine intel 3162 | -10/Subcaves | A swath of the cavern ceiling suddenly collapsed 3243 | -10/Subcaves | Core integrity fell below 20% 3458 | -10/Subcaves | Destroyed by NQ-YWX(R) with Subdweller Shrapnel Launcher Last Messages --------------- 03235_ Flight Unit fries itself beyond repair. 03236_ Lgt. Assault Rifle fries itself beyond repair. 03245_ S-10 Pest destroyed. 03251_ Flight Unit fries itself beyond repair. 03271_ Subatomizers dissect the Ion Engine. 03276_ Acquired 10 matter. 03333_ Discarded Targeting Computer. 03353_ Sub. Laser shoots sparks and powers down. 03365_ Dropped Broken Sub. Laser. 03366_ Dropped Broken Sub. Beam Cannon. 03410_ 05-5PL(R): "SUBSUB!" 03424_ 05-5PL(R) suffers critical hit (Meltdown). 03424_ Disposable Heat Sink melted. 03427_ Acquired 22 matter. 03430_ Acquired Sub. Power Source. 03432_ Acquired 10 matter. 03453_ NQ-YWX(R) affixes Scrap Shield Fragment to Scrap Shield. Map ----- +----------------------------------------------------+ | | | | | | | | | | | | | | | | | | | | | | | | | | | | | | | | | | | | | ?????????????????????????????????????????????????? | | ???????????????????????##????????????????????????? | | ????????????????????#### ####?#??????????????????? | | ????????????????????#; ; # #####??????????????? | | ????????????????????# $ $##?????????????? | | ????????????????????# $ $#?????????????? | | ????????????????????# $ #?????????????? | | ????????????????????# @ $ $<#?????????????? | | ????????????????????# $ $ < #?????????????? | | ????????????????????# ####?????????????? | | ????????????????????# R ; ###????????????????? | | ????????????????????# <#;;;##?????????????????? | | ????????????????????##<< # #?????????????????? | | ?????????????????????# ^ ##?????????????????? | | ?????????????????????## ##%!<#??####???????????? | | ???????????????????########" <#### ##??????????? | | ??????????????????## ### < ## ###????????? | | ??????????????????# ##???????? | | ??????????????????## ### ####### ##??####? | | ???????????????????# #?# #????## ### # | | ???????????????????#####?## ????# # | | ??????????????????????????## ??## #?? | | ????????????????????????????###" #??# # #?? | | ?????????????????????????????#### #?# ##?? #?? | | ???????????????????????????###""#?#?## ##?? #?? | | ???????????????????????????#""######## #??# #?? | | ??????????????????????????#"##""#"""###[]#?# #?? | | ??????????????????????????#####"""#""""### #??? | | ???????????????????????????#"#"""##"####?# #??? | | ???????????????????????????##"#"""###???# #?#? | | ???????????????????????????##""""#"##### ?? | | ???????????????????????????## ###"### ## ??? | +----------------------------------------------------+ Best States ------------- Heat Dissipation 25 Energy Generation 10 Energy Capacity 250 Matter Stores 300 Matter Capacity 300 Sight Range 16 Terrain Scan Density 10 Armor Coverage 150 Evasion (%) 40 Targeting Accuracy 5 Recoil Reduction 2 Item Schematics ----------------- None Robot Schematics ------------------ None Fabricated ------------ Nothing Repaired ---------- Lgt. Treads | 38% | -10/Materials Alien Tech Used ----------------- None Achievements -------------- None Challenges ------------ None Game ------ Seed TrackerAntigravMatterbank Manual? 0 Play Time 00:22:42 Cumulative 327.2 hours Start 2025.07.30 @ 16:39:31 End 2025.07.30 @ 16:58:11 Sessions 1 Manual Loads 0 Difficulty Rogue Special Mode None Game No. 152 Rogue 138 Adventurer 14 Explorer 0 Win Type - Total 18 Types 15/0/1/1/0/0/0/0/1/0 Lore% 63 Gallery% 72 Achievement% 68 Wizard Run 0 Options --------- Layout 1 ASCII 0 Keyboard 0 Movement Arrows Keybinds 0 Fullscreen 1 Font 24/Smallcaps Map View 50x35 Zoom Use 0% Tactical HUD 1 Map Filters NONE Filters NONE Steam 1 RUN: b92cfb2e-e90f-40c8-ae3c-8da4ddde51a6